fUST/lending_fUST_20250131
["ID","MTS","AMOUNT","RATE_DAILY","PERIOD"]
[351063614,1738321858090,-600.0,0.00021917,2]
[351063615,1738321858099,-600.0,0.00021917,2]
[351063616,1738321858108,-600.0,0.00021917,2]
[351063617,1738321858117,-600.0,0.00021917,2]
[351063618,1738321858126,-600.0,0.00021917,2]
[351063619,1738321858136,-600.0,0.00021917,2]
[351063620,1738321858146,-600.0,0.00021917,2]
[351063621,1738321858155,-412.56089513,0.00021917,2]
[351063622,1738321858164,-503.10220799,0.00021917,2]
[351063623,1738321858174,-500.0,0.00021917,2]
[351063624,1738321858183,-500.0,0.00021917,2]
[351063625,1738321858192,-500.0,0.00021917,2]
[351063626,1738321858201,-500.0,0.00021917,2]
[351063627,1738321858211,-500.0,0.00021917,2]
[351063628,1738321858220,-500.0,0.00021917,2]
[351063629,1738321858229,-500.0,0.00021917,2]
[351063630,1738321858238,-500.0,0.00021917,2]
[351063631,1738321858247,-500.0,0.00021917,2]
[351063632,1738321858256,-500.0,0.00021917,2]
[351063633,1738321858265,-500.0,0.00021917,2]
[351063634,1738321858274,-203.93073282,0.00021917,2]
[351063635,1738321858284,-500.0,0.00021917,2]
[351063636,1738321858293,-500.18818743,0.00021917,2]
[351063637,1738321858302,-1000.0,0.00021917,2]
[351063638,1738321858311,-1000.0,0.00021917,2]
[351063639,1738321858320,-1000.0,0.00021917,2]
[351063640,1738321858330,-1000.0,0.00021917,2]
[351063641,1738321858339,-1000.0,0.00021917,2]
[351063642,1738321858348,-1000.0,0.00021917,2]
[351063643,1738321858358,-1000.0,0.00021917,2]
[351063644,1738321858367,-1000.0,0.00021917,2]
[351063645,1738321858377,-1000.0,0.00021917,2]
[351063646,1738321858386,-1000.0,0.00021917,2]
[351063647,1738321858396,-1000.0,0.00021917,2]
[351063648,1738321858405,-1000.0,0.00021917,2]
[351063649,1738321858415,-1000.0,0.00021917,2]
[351063650,1738321858424,-1000.0,0.00021917,2]
[351063651,1738321858434,-1000.0,0.00021917,2]
[351063652,1738321858444,-1000.0,0.00021917,2]
[351063653,1738321858453,-1000.0,0.00021917,2]
[351063654,1738321858463,-677.94961593,0.00021917,2]
[351063655,1738321858473,-500.0,0.00021918,2]
[351063656,1738321858482,-500.0,0.00021918,2]
[351063657,1738321858492,-500.0,0.00021918,2]
[351063658,1738321858502,-500.0,0.00021918,2]
[351063659,1738321858515,-500.0,0.00021918,2]
[351063660,1738321858524,-500.0,0.00021918,2]
[351063661,1738321858533,-500.0,0.00021918,2]
[351063662,1738321858542,-593.61888015,0.00021918,2]
[351063663,1738321858552,-807.0,0.00021918,2]
[351063664,1738321858561,-1305.55319245,0.0002192,2]
[351063665,1738321858570,-1305.55319245,0.0002192,2]
[351063666,1738321858579,-1305.55319245,0.0002192,2]
[351063667,1738321858589,-1305.55319245,0.0002192,2]
[351063668,1738321858598,-1305.55319245,0.0002192,2]
[351063669,1738321858607,-1305.55319245,0.0002192,2]
[351063670,1738321858616,-1305.55319245,0.0002192,2]
[351063671,1738321858625,-1305.55319245,0.0002192,2]
[351063672,1738321858635,-1305.55319245,0.0002192,2]
[351063673,1738321858645,-1305.55319245,0.0002192,2]
[351063674,1738321858654,-1305.55319245,0.0002192,2]
[351063675,1738321858663,-1305.55319245,0.0002192,2]
[351063676,1738321858672,-1305.55319245,0.0002192,2]
[351063677,1738321858682,-1305.55319245,0.0002192,2]
[351063678,1738321858692,-1305.55319245,0.0002192,2]
[351063679,1738321858702,-1305.55319245,0.0002192,2]
[351063680,1738321858712,-1305.55319245,0.0002192,2]
[351063681,1738321858721,-1305.55319245,0.0002192,2]
[351063682,1738321858730,-1305.55319245,0.0002192,2]
[351063683,1738321858740,-1305.55,0.0002192,2]
[351063684,1738321858749,-3046.29078239,0.0002192,2]
[351063685,1738321858759,-3046.29078239,0.0002192,2]
[351063686,1738321858769,-3046.29078239,0.0002192,2]
[351063687,1738321858778,-3046.29078239,0.0002192,2]
[351063688,1738321858788,-3046.29078239,0.0002192,2]
[351063689,1738321858797,-3046.29078239,0.0002192,2]
[351063690,1738321858807,-3046.29078239,0.0002192,2]
[351063691,1738321858816,-3046.29078239,0.0002192,2]
[351063692,1738321858826,-3046.29078239,0.0002192,2]
[351063693,1738321858835,-3046.29078239,0.0002192,2]
[351063694,1738321858845,-3046.29078239,0.0002192,2]
[351063695,1738321858854,-3046.29078239,0.0002192,2]
[351063696,1738321858864,-3046.29078239,0.0002192,2]
[351063697,1738321858873,-3046.29078239,0.0002192,2]
[351063698,1738321858882,-3046.29078239,0.0002192,2]
[351063699,1738321858891,-3046.29078239,0.0002192,2]
[351063700,1738321858901,-3046.29078239,0.0002192,2]
[351063701,1738321858910,-3046.29078239,0.0002192,2]
[351063702,1738321858919,-3046.29078239,0.0002192,2]
[351063703,1738321858928,-3046.29,0.0002192,2]
[351063704,1738321858938,-263.65,0.0002192,2]
[351063705,1738321858947,-153.79754024,0.0002192,2]
[351063706,1738321858956,-153.79754024,0.0002192,2]
[351063707,1738321858966,-153.79754024,0.0002192,2]
[351063708,1738321858975,-153.79,0.0002192,2]
[351063709,1738321858984,-528.75398984,0.00021937,3]
[351063710,1738321859058,-5498.38257043,0.00021958,2]
[351063711,1738321859087,-7451.21511164,0.00021958,2]
[351063712,1738321859096,-5000.0,0.00021958,2]
[351063713,1738321859105,-5000.0,0.00021958,2]
[351063714,1738321859114,-5000.0,0.00021958,2]
[351063715,1738321859123,-5000.0,0.00021958,2]
[351063716,1738321859133,-5682.97896062,0.00021968,2]
[351063717,1738321859142,-1500.0,0.00021973,2]
[351063718,1738321859151,-499999.6170404,0.0002199,15]
[351063719,1738321859160,-500.0,0.00021992,2]
[351063720,1738321859169,-19348.45550135,0.00022,3]
[351063721,1738321859178,-345.73117386,0.00022,2]
[351063722,1738321859187,-576.19744337,0.00022,2]
[351063723,1738321859196,-31654.21144814,0.00022,2]
[351063724,1738321859206,-162.41854586,0.00022,10]
[351063725,1738321859215,-801.0,0.00022,2]
[351063726,1738321859225,-1000.0,0.00022,2]
[351063727,1738321859235,-28390.52011886,0.00022,7]
[351063728,1738321859245,-153110.25568435,0.00022,7]
[351063729,1738321859255,-53100.75095571,0.00022,2]
[351063730,1738321859265,-1000.0,0.00022,22]
[351063731,1738321859276,-23610.45531293,0.00022,15]
[351063732,1738321859286,-212.4090426,0.00022,120]
[351063733,1738321859295,-2000.0,0.00022,2]
[351063734,1738321859304,-160.0,0.00022,3]
[351063735,1738321859314,-160.0,0.00022,7]
[351063736,1738321859324,-528.75398984,0.00022037,4]
[351063737,1738321859333,-470.17504528,0.00022046,2]
[351063738,1738321859419,-493.99999998,0.00017397,2]
[351063739,1738321859435,-6.00000002,0.00017397,2]
[351063740,1738321859446,-661.74,0.00018219,2]
[351063741,1738321859455,-2956.92833022,0.00022046,2]
[351063742,1738321859604,-500.0,0.00016438,2]
[351063743,1738321859614,-500.0,0.00016575,2]
[351063744,1738321859623,-500.0,0.00016712,2]
[351063745,1738321859633,-500.0,0.00016849,2]
[351063746,1738321859641,-500.0,0.00016986,2]
[351063747,1738321859651,-500.0,0.00017123,2]
[351063748,1738321859660,-487.9997193,0.0001726,2]
[351063751,1738322570714,202.137552,0.00013973,2]
[351063850,1738323038184,-300.0,0.00016437,2]
[351063852,1738323038193,-7.3515452,0.00016438,2]
[351064153,1738323041249,-492.6484548,0.00016438,2]
[351064155,1738323041259,-502.48009893,0.00016438,2]
[351064157,1738323041268,-500.0,0.00016438,2]
[351064159,1738323041278,-535.1,0.00016438,2]
[351064162,1738323041288,-637.73204876,0.00016438,2]
[351064163,1738323041298,-277.94586382,0.00016438,2]
[351064165,1738323041307,-520.16,0.00016438,2]
[351064167,1738323041317,-500.0,0.00016438,2]
[351064169,1738323041326,-500.0,0.00016438,2]
[351064171,1738323041336,-500.0,0.00016438,2]
[351064173,1738323041345,-500.0,0.00016438,2]
[351064175,1738323041355,-500.0,0.00016438,2]
[351064177,1738323041364,-500.0,0.00016438,2]
[351064180,1738323041381,-500.0,0.00016438,2]
[351064182,1738323041390,-500.0,0.00016438,2]
[351064184,1738323041399,-500.0,0.00016438,2]
[351064186,1738323041409,-500.0,0.00016438,2]
[351064187,1738323041418,-500.0,0.00016438,2]
[351064189,1738323041428,-500.0,0.00016438,2]
[351064191,1738323041437,-500.0,0.00016438,2]
[351064193,1738323041446,-500.0,0.00016438,2]
[351064195,1738323041455,-500.0,0.00016438,2]
[351064197,1738323041465,-500.0,0.00016438,2]
[351064199,1738323041475,-500.0,0.00016438,2]
[351064201,1738323041484,-500.0,0.00016438,2]
[351064203,1738323041494,-500.0,0.00016438,2]
[351064205,1738323041503,-500.0,0.00016438,2]
[351064207,1738323041512,-500.0,0.00016438,2]
[351064209,1738323041521,-500.0,0.00016438,2]
[351064211,1738323041531,-500.0,0.00016438,2]
[351064213,1738323041540,-500.0,0.00016438,2]
[351064215,1738323041550,-500.0,0.00016438,2]
[351064217,1738323041559,-500.0,0.00016438,2]
[351064218,1738323041568,-500.0,0.00016438,2]
[351064219,1738323041577,-500.0,0.00016438,2]
[351064220,1738323041587,-500.0,0.00016438,2]
[351064221,1738323041596,-500.0,0.00016438,2]
[351064222,1738323041605,-500.0,0.00016438,2]
[351064223,1738323041614,-500.0,0.00016438,2]
[351064224,1738323041626,-500.0,0.00016438,2]
[351064225,1738323041635,-500.0,0.00016438,2]
[351064226,1738323041644,-500.0,0.00016438,2]
[351064227,1738323041653,-500.0,0.00016438,2]
[351064228,1738323041662,-500.0,0.00016438,2]
[351064229,1738323041671,-500.0,0.00016438,2]
[351064230,1738323041680,-510.35374886,0.00016438,2]
[351064231,1738323041689,-500.0,0.00016438,2]
[351064232,1738323041698,-500.0,0.00016438,2]
[351064233,1738323041708,-500.0,0.00016438,2]
[351064234,1738323041717,-500.0,0.00016438,2]
[351064236,1738323041726,-500.0,0.00016438,2]
[351064238,1738323041735,-500.0,0.00016438,2]
[351064240,1738323041744,-500.0,0.00016438,2]
[351064242,1738323041753,-500.0,0.00016438,2]
[351064244,1738323041762,-500.0,0.00016438,2]
[351064246,1738323041771,-500.0,0.00016438,2]
[351064248,1738323041780,-500.0,0.00016438,2]
[351064250,1738323041789,-500.0,0.00016438,2]
[351064252,1738323041798,-500.0,0.00016438,2]
[351064254,1738323041808,-500.0,0.00016438,2]
[351064256,1738323041817,-500.0,0.00016438,2]
[351064258,1738323041826,-500.0,0.00016438,2]
[351064260,1738323041835,-500.0,0.00016438,2]
[351064262,1738323041844,-211.76,0.00016438,2]
[351064264,1738323041853,-500.0,0.00016438,2]
[351064266,1738323041863,-500.0,0.00016438,2]
[351064268,1738323041876,-500.0,0.00016438,2]
[351064270,1738323041885,-500.0,0.00016438,2]
[351064272,1738323041894,-500.0,0.00016438,2]
[351064274,1738323041904,-500.0,0.00016438,2]
[351064276,1738323041913,-500.0,0.00016438,2]
[351064278,1738323041924,-500.0,0.00016438,2]
[351064280,1738323041933,-500.0,0.00016438,2]
[351064282,1738323041942,-500.0,0.00016438,2]
[351064284,1738323041951,-500.0,0.00016438,2]
[351064287,1738323041961,-637.90186043,0.00016438,2]
[351064289,1738323041971,-500.0,0.00016438,2]
[351064291,1738323041983,-500.0,0.00016438,2]
[351064292,1738323041992,-500.0,0.00016438,2]
[351064294,1738323042001,-597.20458528,0.00016438,2]
[351064297,1738323042011,-500.0,0.00016438,2]
[351064299,1738323042021,-500.0,0.00016438,2]
[351064301,1738323042030,-584.07744129,0.00016438,2]
[351064303,1738323042039,-500.0,0.00016438,2]
[351064305,1738323042048,-500.0,0.00016438,2]
[351064306,1738323042058,-500.0,0.00016438,2]
[351064309,1738323042067,-500.0,0.00016438,2]
[351064311,1738323042079,-500.0,0.00016438,2]
[351064313,1738323042088,-500.0,0.00016438,2]
[351064315,1738323042097,-500.0,0.00016438,2]
[351064316,1738323042106,-500.0,0.00016438,2]
[351064318,1738323042115,-500.0,0.00016438,2]
[351064321,1738323042127,-500.0,0.00016438,2]
[351064323,1738323042136,-500.0,0.00016438,2]
[351064325,1738323042146,-500.0,0.00016438,2]
[351064327,1738323042155,-500.0,0.00016438,2]
[351064328,1738323042164,-500.0,0.00016438,2]
[351064330,1738323042173,-500.0,0.00016438,2]
[351064332,1738323042183,-500.0,0.00016438,2]
[351064335,1738323042192,-500.0,0.00016438,2]
[351064337,1738323042201,-500.0,0.00016438,2]
[351064339,1738323042211,-500.0,0.00016438,2]
[351064341,1738323042221,-500.0,0.00016438,2]
[351064343,1738323042231,-500.0,0.00016438,2]
[351064345,1738323042240,-533.41,0.00016438,2]
[351064347,1738323042249,-935.11,0.00016438,2]
[351064349,1738323042258,-1385.68,0.00016438,2]
[351064351,1738323042268,-1112.34,0.00016438,2]
[351064353,1738323042278,-500.0,0.00016438,2]
[351064355,1738323042287,-500.0,0.00016438,2]
[351064357,1738323042297,-503.41990035,0.00016438,2]
[351064359,1738323042307,-1182.55,0.00016438,2]
[351064361,1738323042316,-517.13008383,0.00016438,2]
[351064363,1738323042326,-500.0,0.00016438,2]
[351064365,1738323042335,-500.0,0.00016438,2]
[351064367,1738323042344,-563.01,0.00016438,2]
[351064369,1738323042354,-1542.0,0.00016438,2]
[351064371,1738323042362,-127.64372465,0.00016438,2]
[351069063,1738323611752,205.273326,0.00013973,2]
[351069073,1738323971867,-250.0,0.00015615,2]
[351069074,1738323971899,-174.74410633,0.00016338,2]
[351069075,1738323971931,-300.0,0.00016427,2]
[351069076,1738323971951,-250.0,0.00016428,2]
[351069077,1738323971970,-141.75,0.00016428,2]
[351069078,1738323971979,-32.99410633,0.00016428,2]
[351069079,1738323971990,-300.0,0.00016428,2]
[351069080,1738323972002,-58.75589367,0.00016428,2]
[351069081,1738323972011,-291.75589367,0.00016428,2]
[351069083,1738324033654,-300.0,0.00016427,2]
[351069084,1738324033685,-99.99410633,0.00016428,2]
[351069085,1738324033715,-391.75,0.00016428,2]
[351069086,1738324033747,-391.75,0.00016428,2]
[351069087,1738324033778,-391.75,0.00016428,2]
[351069088,1738324033808,-391.75,0.00016428,2]
[351069089,1738324033838,-391.75,0.00016428,2]
[351069090,1738324033867,-391.75,0.00016428,2]
[351069091,1738324033899,-391.75,0.00016428,2]
[351069092,1738324033930,-391.75,0.00016428,2]
[351069093,1738324033960,-391.75,0.00016428,2]
[351069094,1738324033981,-300.0,0.00016428,2]
[351069095,1738324033998,-91.75,0.00016428,2]
[351069096,1738324034009,-8.24410633,0.00016428,2]
[351069097,1738324034021,-383.50589367,0.00016428,2]
[351069098,1738324034031,-8.24410633,0.00016428,2]
[351069099,1738324034043,-383.50589367,0.00016428,2]
[351069100,1738324034052,-8.24410633,0.00016428,2]
[351069101,1738324034064,-383.50589367,0.00016428,2]
[351069102,1738324034074,-8.24410633,0.00016428,2]
[351069103,1738324034086,-383.50589367,0.00016428,2]
[351069104,1738324034095,-8.24410633,0.00016428,2]
[351069105,1738324034107,-383.50589367,0.00016428,2]
[351069106,1738324034117,-8.24410633,0.00016428,2]
[351069107,1738324034128,-383.50589367,0.00016428,2]
[351069108,1738324034137,-8.24410633,0.00016428,2]
[351069109,1738324034149,-383.50589367,0.00016428,2]
[351069110,1738324034158,-8.24410633,0.00016433,2]
[351069111,1738324034174,-391.75,0.00016433,2]
[351069112,1738324034185,-391.75,0.00016433,2]
[351069113,1738324034201,-148.51178734,0.00016433,2]
[351069198,1738324232600,-300.0,0.00016437,2]
[351069199,1738324232609,-500.0,0.00016438,2]
[351069200,1738324232620,-500.0,0.00016438,2]
[351069201,1738324232629,-500.0,0.00016438,2]
[351069202,1738324232638,-500.0,0.00016438,2]
[351069203,1738324232648,-500.0,0.00016438,2]
[351069204,1738324232657,-500.0,0.00016438,2]
[351069205,1738324232667,-500.0,0.00016438,2]
[351069206,1738324232677,-500.0,0.00016438,2]
[351069207,1738324232686,-500.0,0.00016438,2]
[351069208,1738324232696,-500.0,0.00016438,2]
[351069209,1738324232706,-500.0,0.00016438,2]
[351069210,1738324232715,-500.0,0.00016438,2]
[351069211,1738324232724,-500.0,0.00016438,2]
[351069222,1738324232844,-500.0,0.00016438,2]
[351069224,1738324232854,-500.0,0.00016438,2]
[351069226,1738324232863,-500.0,0.00016438,2]
[351069228,1738324232872,-500.0,0.00016438,2]
[351069230,1738324232881,-500.0,0.00016438,2]
[351069232,1738324232890,-500.0,0.00016438,2]
[351069233,1738324232900,-500.0,0.00016438,2]
[351069234,1738324232909,-500.0,0.00016438,2]
[351069236,1738324232920,-500.0,0.00016438,2]
[351069238,1738324232929,-500.0,0.00016438,2]
[351069240,1738324232938,-503.32902953,0.00016438,2]
[351069241,1738324232947,-500.0,0.00016438,2]
[351069243,1738324232956,-500.0,0.00016438,2]
[351069245,1738324232965,-467.40683247,0.00016438,2]
[351069247,1738324232975,-506.46905238,0.00016438,2]
[351069249,1738324232984,-500.0,0.00016438,2]
[351069251,1738324232993,-500.0,0.00016438,2]
[351069253,1738324233002,-500.0,0.00016438,2]
[351069255,1738324233012,-500.0,0.00016438,2]
[351069257,1738324233021,-302.85196127,0.00016438,2]
[351069259,1738324233031,-500.0,0.00016438,2]
[351069261,1738324233041,-500.0,0.00016438,2]
[351069263,1738324233050,-500.0,0.00016438,2]
[351069264,1738324233059,-500.0,0.00016438,2]
[351069266,1738324233069,-500.0,0.00016438,2]
[351069268,1738324233078,-500.0,0.00016438,2]
[351069270,1738324233089,-500.0,0.00016438,2]
[351069271,1738324233099,-500.0,0.00016438,2]
[351069272,1738324233108,-502.42080201,0.00016438,2]
[351069274,1738324233118,-273.10615024,0.00016438,2]
[351069276,1738324233129,-500.0,0.00016438,2]
[351069277,1738324233138,-500.0,0.00016438,2]
[351069278,1738324233149,-500.0,0.00016438,2]
[351069279,1738324233159,-500.0,0.00016438,2]
[351069280,1738324233170,-500.0,0.00016438,2]
[351069281,1738324233179,-500.0,0.00016438,2]
[351069282,1738324233189,-500.0,0.00016438,2]
[351069283,1738324233199,-276.79606257,0.00016438,2]
[351069284,1738324233209,-606.02,0.00016438,2]
[351069285,1738324233219,-500.0,0.00016438,2]
[351069286,1738324233229,-505.850031,0.00016438,2]
[351069288,1738324233238,-501.14547502,0.00016438,2]
[351069289,1738324233248,-500.0,0.00016438,2]
[351069291,1738324233257,-500.0,0.00016438,2]
[351069293,1738324233267,-500.0,0.00016438,2]
[351069295,1738324233276,-500.0,0.00016438,2]
[351069296,1738324233285,-500.0,0.00016438,2]
[351069297,1738324233294,-500.0,0.00016438,2]
[351069299,1738324233304,-500.0,0.00016438,2]
[351069300,1738324233313,-500.0,0.00016438,2]
[351069301,1738324233323,-500.0,0.00016438,2]
[351069302,1738324233333,-500.0,0.00016438,2]
[351069303,1738324233342,-500.0,0.00016438,2]
[351069304,1738324233352,-626.15,0.00016438,2]
[351069305,1738324233362,-597.10271811,0.00016438,2]
[351069306,1738324233371,-500.0,0.00016438,2]
[351069307,1738324233381,-500.0,0.00016438,2]
[351069308,1738324233391,-500.0,0.00016438,2]
[351069309,1738324233401,-629.92,0.00016438,2]
[351069310,1738324233410,-500.0,0.00016438,2]
[351069311,1738324233421,-500.0,0.00016438,2]
[351069312,1738324233430,-500.0,0.00016438,2]
[351069314,1738324233441,-500.0,0.00016438,2]
[351069315,1738324233453,-773.95,0.00016438,2]
[351069317,1738324233462,-500.0,0.00016438,2]
[351069319,1738324233472,-625.23,0.00016438,2]
[351069320,1738324233482,-1883.07,0.00016438,2]
[351069322,1738324233493,-500.0,0.00016438,2]
[351069323,1738324233503,-500.0,0.00016438,2]
[351069324,1738324233513,-500.0,0.00016438,2]
[351069325,1738324233523,-500.0,0.00016438,2]
[351069326,1738324233532,-519.41,0.00016438,2]
[351069327,1738324233542,-500.0,0.00016438,2]
[351069328,1738324233552,-927.18,0.00016438,2]
[351069329,1738324233561,-708.98,0.00016438,2]
[351069330,1738324233570,-500.0,0.00016438,2]
[351069331,1738324233580,-500.0,0.00016438,2]
[351069332,1738324233589,-500.0,0.00016438,2]
[351069333,1738324233599,-2096.68,0.00016438,2]
[351069334,1738324233608,-500.0,0.00016438,2]
[351069335,1738324233618,-1887.41,0.00016438,2]
[351069336,1738324233627,-500.0,0.00016438,2]
[351069337,1738324233636,-500.0,0.00016438,2]
[351069338,1738324233645,-500.0,0.00016438,2]
[351069339,1738324233655,-500.0,0.00016438,2]
[351069340,1738324233665,-501.75930105,0.00016438,2]
[351069341,1738324233675,-500.0,0.00016438,2]
[351069342,1738324233684,-500.0,0.00016438,2]
[351069343,1738324233694,-500.0,0.00016438,2]
[351069344,1738324233703,-500.0,0.00016438,2]
[351069345,1738324233713,-500.0,0.00016438,2]
[351069346,1738324233723,-500.0,0.00016438,2]
[351069347,1738324233732,-500.0,0.00016438,2]
[351069348,1738324233741,-500.0,0.00016438,2]
[351069349,1738324233750,-500.0,0.00016438,2]
[351069350,1738324233760,-500.0,0.00016438,2]
[351069351,1738324233769,-446.7030947,0.00016438,2]
[351069352,1738324233778,-500.0,0.00016438,2]
[351069353,1738324233788,-500.0,0.00016438,2]
[351069354,1738324233799,-500.0,0.00016438,2]
[351069355,1738324233809,-964.36,0.00016438,2]
[351069356,1738324233818,-500.0,0.00016438,2]
[351069357,1738324233827,-500.0,0.00016438,2]
[351069358,1738324233838,-500.0,0.00016438,2]
[351069359,1738324233847,-500.0,0.00016438,2]
[351069360,1738324233857,-500.0,0.00016438,2]
[351069361,1738324233867,-500.0,0.00016438,2]
[351069362,1738324233876,-500.0,0.00016438,2]
[351069363,1738324233886,-500.0,0.00016438,2]
[351069364,1738324233895,-1821.31,0.00016438,2]
[351069365,1738324233904,-500.0,0.00016438,2]
[351069366,1738324233915,-500.0,0.00016438,2]
[351069367,1738324233924,-500.0,0.00016438,2]
[351069368,1738324233934,-2870.92,0.00016438,2]
[351069369,1738324233944,-500.0,0.00016438,2]
[351069370,1738324233954,-500.0,0.00016438,2]
[351069371,1738324233964,-496.98142002,0.00016438,2]
[351069372,1738324233973,-455.59426665,0.00016438,2]
[351069373,1738324233982,-500.0,0.00016438,2]
[351069374,1738324233992,-1303.87,0.00016438,2]
[351069375,1738324234001,-500.0,0.00016438,2]
[351069376,1738324234010,-464.81196845,0.00016438,2]
[351069377,1738324234020,-298.66439273,0.00016438,2]
[351069378,1738324234029,-500.0,0.00016438,2]
[351069379,1738324234038,-2673.79,0.00016438,2]
[351069380,1738324234047,-500.0,0.00016438,2]
[351069381,1738324234057,-500.0,0.00016438,2]
[351069382,1738324234066,-500.0,0.00016438,2]
[351069383,1738324234075,-500.0,0.00016438,2]
[351069384,1738324234085,-500.0,0.00016438,2]
[351069385,1738324234094,-500.0,0.00016438,2]
[351069386,1738324234103,-391.44437099,0.00016438,2]
[351069387,1738324234113,-500.0,0.00016438,2]
[351069388,1738324234121,-500.0,0.00016438,2]
[351069389,1738324234131,-500.0,0.00016438,2]
[351069390,1738324234141,-500.0,0.00016438,2]
[351069391,1738324234150,-500.0,0.00016438,2]
[351069392,1738324234159,-500.0,0.00016438,2]
[351069393,1738324234171,-1405.2,0.00016438,2]
[351069394,1738324234180,-500.0,0.00016438,2]
[351069395,1738324234190,-500.0,0.00016438,2]
[351069396,1738324234199,-533.36705806,0.00016438,2]
[351069397,1738324234209,-500.0,0.00016438,2]
[351069398,1738324234218,-500.0,0.00016438,2]
[351069399,1738324234227,-500.0,0.00016438,2]
[351069400,1738324234237,-829.86,0.00016438,2]
[351069401,1738324234247,-6602.12,0.00016438,2]
[351069402,1738324234256,-500.0,0.00016438,2]
[351069403,1738324234265,-500.0,0.00016438,2]
[351069404,1738324234275,-1794.86,0.00016438,2]
[351069405,1738324234285,-500.0,0.00016438,2]
[351069406,1738324234294,-500.0,0.00016438,2]
[351069407,1738324234304,-503.86580727,0.00016438,2]
[351069408,1738324234314,-500.0,0.00016438,2]
[351069409,1738324234324,-500.0,0.00016438,2]
[351069410,1738324234334,-559.06,0.00016438,2]
[351069411,1738324234344,-25073.23,0.00016438,2]
[351069412,1738324234354,-500.0,0.00016438,2]
[351069413,1738324234364,-500.0,0.00016438,2]
[351069414,1738324234375,-500.0,0.00016438,2]
[351069415,1738324234386,-4169.68,0.00016438,2]
[351069416,1738324234397,-500.0,0.00016438,2]
[351069417,1738324234407,-619.11,0.00016438,2]
[351069418,1738324234421,-524.51,0.00016438,2]
[351069419,1738324234431,-500.0,0.00016438,2]
[351069420,1738324234443,-5052.47,0.00016438,2]
[351069421,1738324234458,-5033.30122023,0.000165,2]
[351069422,1738324234468,-199.36935618,0.00016574,2]
[351069423,1738324234478,-191.36271319,0.00016574,2]
[351069424,1738324234488,-500.0,0.00016574,2]
[351069425,1738324234498,-524.2736667,0.00016574,2]
[351069426,1738324234507,-500.0,0.00016574,2]
[351069427,1738324234517,-500.0,0.00016574,2]
[351069428,1738324234529,-500.0,0.00016574,2]
[351069429,1738324234539,-424.02922834,0.00016574,2]
[351069430,1738324234549,-500.0,0.00016575,2]
[351069431,1738324234559,-500.0,0.00016575,2]
[351069432,1738324234568,-500.0,0.00016575,2]
[351069433,1738324234578,-500.0,0.00016575,2]
[351069434,1738324234587,-500.0,0.00016575,2]
[351069435,1738324234597,-500.0,0.00016575,2]
[351069436,1738324234606,-361.35299539,0.00016575,2]
[351069437,1738324234616,-500.0,0.00016575,2]
[351069438,1738324234626,-504.57467689,0.00016575,2]
[351069439,1738324234635,-556.46,0.00016575,2]
[351069440,1738324234644,-500.0,0.00016575,2]
[351069441,1738324234654,-500.0,0.00016575,2]
[351069442,1738324234667,-439.98,0.00016575,2]
[351069443,1738324234675,-500.0,0.00016575,2]